bitfinex-derivatives/quotes_BTCF0:USTF0_20250127
["timestamp","ask_amount","ask_price","bid_price","bid_amount"]
[1737976720712,0.0015158,99029.0,99028.0,0.562873]
[1737976721117,0.00024523,99032.0,99031.0,0.202067]
[1737976721509,0.202067,99031.0,99029.0,0.1185]
[1737976722107,0.00024523,99032.0,99029.0,0.1185]
[1737976722310,0.00024523,99032.0,99031.0,0.202067]
[1737976723307,0.00024523,99032.0,99029.0,0.1185]
[1737976723514,0.202067,99031.0,99029.0,0.1185]
[1737976723908,0.203067,99031.0,99029.0,0.1185]
[1737976724519,0.202067,99031.0,99029.0,0.001]
[1737976724922,0.562867,99031.0,99029.0,0.001]
[1737976725218,0.563867,99031.0,99029.0,0.001]
[1737976726007,0.202083,99023.0,99022.0,0.00015152]
[1737976727819,0.204083,99023.0,99022.0,0.00015152]
[1737976728322,0.202083,99023.0,99022.0,0.00015152]
[1737976728513,0.002,99023.0,99022.0,0.00015152]
[1737976728721,0.002,99023.0,99022.0,0.20223652]
[1737976729418,0.003,99023.0,99022.0,0.20223652]
[1737976729618,0.00024523,99032.0,99030.0,0.202068]
[1737976729818,0.20231123,99032.0,99031.0,0.1117]
[1737976730008,0.00024523,99032.0,99031.0,0.1117]
[1737976730326,0.00015152,99041.0,99040.0,0.202049]
[1737976730518,0.00015152,99041.0,99040.0,0.3608]
[1737976730714,0.20219852,99041.0,99040.0,0.3608]
[1737976731521,0.20419852,99041.0,99040.0,0.3608]
[1737976733322,0.20219852,99041.0,99040.0,0.3608]
[1737976733724,0.20219852,99041.0,99040.0,0.562849]
[1737976734725,0.00015152,99041.0,99040.0,0.562849]
[1737976735313,0.20219852,99041.0,99040.0,0.3608]
[1737976736519,0.00015152,99041.0,99040.0,0.57278644]
[1737976736726,0.20219852,99041.0,99040.0,0.57278644]
[1737976737219,0.00015152,99041.0,99040.0,0.57278644]
[1737976737929,0.00015152,99041.0,99040.0,0.37073744]
[1737976737930,0.20219852,99041.0,99040.0,0.37073744]
[1737976739824,0.20219852,99041.0,99040.0,0.57278644]
[1737976740018,0.00015152,99041.0,99040.0,0.57278644]
[1737976740219,0.20219852,99041.0,99040.0,0.37073744]
[1737976740425,0.20219852,99041.0,99040.0,0.3608]
[1737976741430,0.3608,99054.0,99040.0,0.3608]
[1737976741727,0.00215498,99062.0,99061.0,0.202006]
[1737976742025,0.14982705,99069.0,99068.0,0.201992]
[1737976742419,0.17837072,99076.0,99075.0,0.201977]
[1737976742634,0.17837072,99076.0,99075.0,0.562777]
[1737976743822,0.17837072,99076.0,99075.0,0.563777]
[1737976744029,0.17837072,99076.0,99075.0,0.3618]
[1737976744228,0.47837072,99076.0,99061.0,0.3608]
[1737976744529,0.47837072,99076.0,99059.0,0.00015144]
[1737976744530,0.202008,99060.0,99059.0,0.00015144]
[1737976746833,0.201997,99066.0,99059.0,0.00015144]
[1737976747031,0.201997,99066.0,99065.0,0.201998]
[1737976747332,0.03027978,99076.0,99060.0,0.202006]
[1737976747536,0.03027978,99076.0,99069.0,0.3608]
[1737976747834,0.03027978,99076.0,99074.0,0.201978]
[1737976748736,0.03127978,99076.0,99074.0,0.201978]
[1737976750948,0.03027978,99076.0,99074.0,0.203978]
[1737976751542,0.03027978,99076.0,99074.0,0.208978]
[1737976751935,0.03027978,99076.0,99074.0,0.21923597]
[1737976752135,0.23225578,99076.0,99074.0,0.01725797]
[1737976752442,0.23225578,99076.0,99074.0,0.007]
[1737976753138,0.23225578,99076.0,99074.0,0.008]
[1737976753334,0.23225578,99076.0,99074.0,0.01208451]
[1737976753646,0.23225578,99076.0,99074.0,0.003]
[1737976753836,0.23225578,99076.0,99074.0,0.001]
[1737976754036,0.201986,99071.0,99069.0,0.201989]
[1737976754237,0.201996,99066.0,99065.0,0.3608]
[1737976754446,0.202008,99060.0,99059.0,0.00015144]
[1737976754935,0.201984,99072.0,99059.0,0.00015144]
[1737976755143,0.03227978,99076.0,99067.0,0.3608]
[1737976755338,0.001,99071.0,99068.0,0.201992]
[1737976755643,0.001,99071.0,99070.0,0.201988]
[1737976755840,0.202986,99071.0,99070.0,0.201988]
[1737976756036,0.001,99071.0,99070.0,0.201988]
[1737976756434,0.03127978,99076.0,99067.0,0.3608]
[1737976756641,0.03027978,99076.0,99075.0,0.562777]
[1737976756838,0.201946,99091.0,99075.0,0.3608]
[1737976757039,0.201946,99091.0,99076.0,0.111]
[1737976757240,0.201935,99096.0,99079.0,0.201969]
[1737976757436,0.00994456,99104.0,99079.0,0.201969]
[1737976757641,0.3608,99108.0,99079.0,0.3608]
[1737976757843,0.3608,99108.0,99099.0,0.201928]
[1737976758145,0.3608,99108.0,99094.0,0.201939]
[1737976758346,0.3608,99108.0,99090.0,0.00015136]
[1737976758347,0.201945,99091.0,99090.0,0.00015136]
[1737976758534,0.201992,99068.0,99067.0,0.001]
[1737976758743,0.562792,99068.0,99067.0,0.001]
[1737976758941,0.202041,99044.0,99043.0,0.300537]
[1737976759546,0.3608,99057.0,99043.0,0.300537]
[1737976759935,0.202041,99044.0,99043.0,0.300537]
[1737976761143,0.21212672,99044.0,99043.0,0.300537]
[1737976761337,0.202041,99044.0,99043.0,0.300537]
[1737976762449,0.202041,99044.0,99034.0,0.00015145]
[1737976762450,0.202059,99035.0,99034.0,0.00015145]
[1737976762650,0.562859,99035.0,99034.0,0.00015145]
[1737976764049,0.562859,99035.0,99034.0,0.00115145]
[1737976766248,0.202104,99013.0,99012.0,0.300537]
[1737976766750,0.20212,99005.0,99004.0,0.36162096]
[1737976766949,0.202128,99001.0,99000.0,100.00052]
[1737976767143,0.862928,99001.0,99000.0,98.14171616]
[1737976767347,0.862928,99001.0,99000.0,97.82318306]
[1737976768149,0.562928,99001.0,99000.0,97.82318306]
[1737976768851,0.562928,99001.0,99000.0,97.82418306]
[1737976769457,0.862928,99001.0,99000.0,97.82418306]
[1737976771153,0.865928,99001.0,99000.0,97.82418306]
[1737976771454,0.3638,99001.0,99000.0,97.82418306]
[1737976771660,0.003,99001.0,99000.0,97.83330399]
[1737976771862,0.003,99001.0,99000.0,97.83430399]
[1737976773445,0.002,99001.0,99000.0,97.83430399]
[1737976774060,0.002,99001.0,99000.0,97.83330399]
[1737976774351,0.3,99001.0,99000.0,97.83330399]
[1737976774552,0.3,99001.0,99000.0,97.51476996]
[1737976774764,0.4163,99001.0,99000.0,96.22125686]
[1737976774955,0.42627044,99001.0,99000.0,95.91821686]
[1737976775253,0.42727044,99001.0,99000.0,95.91821686]
[1737976776049,0.12727044,99001.0,99000.0,95.91821686]
[1737976777359,0.202147,98992.0,98974.0,0.3462]
[1737976777559,0.3608,98992.0,98974.0,0.3462]
[1737976777759,0.3608,98984.0,98980.0,0.30304]
[1737976777956,0.3608,98984.0,98975.0,0.20218]
[1737976778160,0.202167,98983.0,98975.0,0.50522]
[1737976778357,0.202168,98982.0,98975.0,0.50522]
[1737976778551,0.3608,98984.0,98974.0,0.3462]
[1737976778748,0.3608,98984.0,98973.0,0.01012093]
[1737976778749,0.202182,98975.0,98973.0,0.01012093]
[1737976779064,0.3608,98974.0,98973.0,0.01012093]
[1737976779547,0.202192,98970.0,98969.0,0.00015153]
[1737976779748,0.562992,98970.0,98969.0,0.00015153]
[1737976781059,0.862992,98970.0,98969.0,0.00115153]
[1737976781361,0.202228,98952.0,98951.0,0.01012093]
[1737976781555,0.563028,98952.0,98951.0,0.01012093]
[1737976783963,0.863028,98952.0,98951.0,0.01012093]
[1737976784165,0.863028,98952.0,98942.0,0.00015153]
[1737976784166,0.202247,98943.0,98942.0,0.00015153]
[1737976784465,0.563047,98943.0,98942.0,0.00015153]
[1737976785265,0.563047,98943.0,98942.0,0.00215153]
[1737976787252,0.863047,98943.0,98942.0,0.00315153]
[1737976787957,0.202271,98931.0,98911.0,0.1135]
[1737976788158,0.56311,98912.0,98911.0,0.1135]
[1737976788364,0.202318,98908.0,98907.0,0.01012093]
[1737976789060,0.3608,98912.0,98907.0,0.01012093]
[1737976789270,0.3608,98912.0,98908.0,0.30304]
[1737976789464,0.3608,98912.0,98911.0,0.30304]
[1737976789660,0.00015161,98917.0,98915.0,0.202303]
[1737976789855,0.3608,98946.0,98931.0,0.202271]
[1737976790061,0.3608,98946.0,98931.0,0.67396093]
[1737976790262,0.3608,98946.0,98941.0,0.30304]
[1737976790263,0.202245,98944.0,98941.0,0.30304]
[1737976790460,0.202219,98957.0,98942.0,0.41174]
[1737976790659,0.202233,98950.0,98943.0,0.3608]
[1737976790965,0.20223,98952.0,98943.0,0.66384]
[1737976791273,0.00015161,98956.0,98949.0,0.30304]
[1737976791459,0.00015161,98956.0,98952.0,0.3608]
[1737976792164,0.20237361,98956.0,98952.0,0.3608]
[1737976792365,0.3608,99004.0,98980.0,0.08043994]
[1737976792556,0.3608,99004.0,98982.0,0.44123994]
[1737976792760,0.202145,98993.0,98983.0,0.08043994]
[1737976792955,0.202157,98987.0,98983.0,0.01012093]
[1737976793365,0.202162,98985.0,98983.0,0.01012093]
[1737976794469,0.007,98987.0,98984.0,0.08043994]
[1737976794764,0.007,98987.0,98986.0,0.08043994]
[1737976794967,0.001,98987.0,98986.0,0.08043994]
[1737976795162,0.00015161,98995.0,98994.0,0.202143]
[1737976795475,0.00015161,98995.0,98994.0,0.64338294]
[1737976796871,0.14980529,98998.0,98997.0,0.202136]
[1737976797057,0.14980529,98998.0,98997.0,0.28257594]
[1737976797766,0.14980529,98998.0,98994.0,0.3608]
[1737976797956,0.005,98995.0,98994.0,0.3608]
[1737976798363,0.005,98995.0,98994.0,0.562943]
[1737976798568,0.006,98998.0,98994.0,0.562943]
[1737976798772,0.006,98998.0,98996.0,0.202137]
[1737976798970,0.006,98998.0,98997.0,0.08043994]
[1737976799965,0.006,98998.0,98997.0,0.19063994]
[1737976800863,0.202125,99003.0,98997.0,0.19063994]
[1737976801177,0.202125,99003.0,99002.0,0.3608]
[1737976801474,0.202141,98995.0,98994.0,0.3608]
[1737976801977,0.3608,98995.0,98981.0,0.3608]
[1737976802175,0.006,98998.0,98983.0,0.09056087]
[1737976802376,0.20215,98991.0,98988.0,0.08043994]
[1737976802874,0.203135,98998.0,98988.0,0.08043994]
[1737976803066,0.203135,98998.0,98983.0,0.01012093]
[1737976803067,0.006,99003.0,98997.0,0.08043994]
[1737976803267,0.202067,99031.0,99019.0,0.202091]
[1737976803470,0.202067,99031.0,99022.0,0.08043994]
[1737976803871,0.00052001,99034.0,99030.0,0.3608]
[1737976804065,0.00052001,99034.0,99022.0,0.08043994]
[1737976804266,0.00060001,99043.0,99031.0,0.3608]
[1737976804462,0.00015125,99038.0,99032.0,0.08043994]
[1737976804666,0.00015125,99038.0,99032.0,0.28250394]
[1737976804882,0.00015125,99038.0,99033.0,0.08043994]
[1737976805069,0.004,99034.0,99033.0,0.08043994]
[1737976805269,0.01,99034.0,99033.0,0.08043994]
[1737976805777,0.004,99034.0,99033.0,0.08043994]
[1737976806077,0.00015125,99038.0,99035.0,0.08043994]
[1737976806377,0.00015125,99038.0,99037.0,0.28249494]
[1737976806969,0.00015125,99038.0,99033.0,0.1144]
[1737976807271,0.00015125,99038.0,99033.0,0.08043994]
[1737976807468,0.202061,99034.0,99032.0,0.001]
[1737976807663,0.204061,99034.0,99033.0,0.001]
[1737976808377,0.204061,99034.0,99031.0,0.3608]
[1737976808576,0.202061,99034.0,99032.0,0.08043994]
[1737976809273,0.203061,99034.0,99033.0,0.08043994]
[1737976809473,0.001,99034.0,99033.0,0.08043994]
[1737976810971,0.00015125,99038.0,99033.0,0.08043994]
[1737976811278,0.00015125,99038.0,99037.0,0.28249494]
[1737976811478,0.00151566,99054.0,99037.0,0.08043994]
[1737976811776,0.00151566,99054.0,99053.0,0.64326194]
[1737976811977,0.00151566,99054.0,99053.0,0.44123994]
[1737976813475,0.00151566,99054.0,99053.0,0.64326194]
[1737976813879,0.00151566,99054.0,99053.0,0.44123994]
[1737976814182,0.20353566,99054.0,99053.0,0.44123994]
[1737976814378,0.20453566,99054.0,99053.0,0.3608]
[1737976815382,0.20553566,99054.0,99053.0,0.3608]
[1737976816187,0.202024,99052.0,99051.0,0.01012093]
[1737976817682,0.00451566,99054.0,99052.0,0.202023]
[1737976817876,0.20653566,99054.0,99053.0,0.08143994]
[1737976818085,0.00451566,99054.0,99053.0,0.08143994]
[1737976818287,0.00151566,99054.0,99053.0,0.08143994]
[1737976818494,0.00151566,99054.0,99053.0,0.28246194]
[1737976818691,0.2287,99079.0,99053.0,0.08043994]
[1737976818884,0.00052001,99081.0,99073.0,0.08043994]
[1737976819087,0.00997665,99084.0,99079.0,0.08043994]
[1737976819295,0.201967,99080.0,99079.0,0.44123994]
[1737976819597,0.201967,99080.0,99079.0,0.3608]
[1737976819890,0.201967,99080.0,99079.0,0.44123994]
[1737976820296,0.201967,99080.0,99079.0,0.08043994]
[1737976820790,0.201981,99073.0,99072.0,0.01012093]
[1737976820995,0.201981,99073.0,99071.0,0.3608]
[1737976821293,0.117,99089.0,99072.0,0.28242294]
[1737976821294,0.201969,99079.0,99072.0,0.28242294]
[1737976821483,0.201969,99079.0,99072.0,0.201983]
[1737976821687,0.003,99084.0,99078.0,0.08043994]
[1737976821890,0.003,99084.0,99071.0,0.3608]
[1737976821891,0.003,99084.0,99081.0,0.3608]
[1737976822200,0.117,99089.0,99081.0,0.3608]
[1737976822384,0.3608,99097.0,99081.0,0.3608]
[1737976822788,0.3608,99097.0,99093.0,0.08043994]
[1737976822989,0.20194,99094.0,99093.0,0.08043994]
[1737976823200,0.20194,99094.0,99091.0,0.3608]
[1737976823497,0.201943,99092.0,99091.0,0.3608]
[1737976823702,0.201943,99092.0,99060.0,0.18704054]
[1737976823703,0.3608,99092.0,99067.0,0.01027238]
[1737976823888,0.201991,99069.0,99067.0,0.01027238]
[1737976824091,0.050499,99066.0,99047.0,0.3608]
[1737976824393,0.3608,99075.0,99063.0,0.08043994]
[1737976824597,0.1151,99082.0,99073.0,0.08043994]
[1737976824797,0.201971,99078.0,99077.0,0.08043994]
[1737976824995,0.201963,99082.0,99080.0,0.08043994]
[1737976825197,0.1151,99097.0,99083.0,0.08043994]
[1737976825386,0.201955,99086.0,99085.0,0.3608]
[1737976826894,0.201955,99086.0,99068.0,0.00015145]
[1737976826895,0.20199,99069.0,99068.0,0.00015145]
[1737976827592,0.20199,99069.0,99068.0,0.08059139]
[1737976827795,0.3608,99082.0,99068.0,0.08059139]
[1737976827992,0.00015117,99087.0,99077.0,0.08043994]
[1737976828386,0.201971,99078.0,99077.0,0.08043994]
[1737976829798,0.201957,99085.0,99078.0,0.201971]
[1737976830003,0.00215117,99087.0,99083.0,0.3608]
[1737976830200,0.201959,99084.0,99083.0,0.3608]
[1737976831101,0.00215117,99087.0,99073.0,0.3608]
[1737976831294,0.201979,99074.0,99073.0,0.3608]
[1737976832107,0.001,99078.0,99068.0,0.00015145]
[1737976832108,0.20199,99069.0,99068.0,0.00015145]
[1737976832602,0.20199,99069.0,99068.0,0.08059139]
[1737976832803,0.41181101,99081.0,99068.0,0.08059139]
[1737976832804,0.202979,99074.0,99068.0,0.08059139]
[1737976833008,0.202979,99074.0,99073.0,0.08043994]
[1737976833306,0.001,99074.0,99073.0,0.08043994]
[1737976834003,0.202979,99074.0,99073.0,0.08043994]
[1737976834202,0.001,99074.0,99072.0,0.3608]
[1737976834404,0.201981,99073.0,99072.0,0.3608]
[1737976835707,0.20199,99069.0,99068.0,0.00015145]
[1737976836105,0.20199,99069.0,99068.0,0.08059139]
[1737976836804,0.20199,99069.0,99068.0,0.00015145]
[1737976837604,0.20199,99069.0,99068.0,0.08059139]
[1737976837800,0.20199,99069.0,99068.0,0.00015145]
[1737976838502,0.20299,99069.0,99068.0,0.00015145]
[1737976839103,0.001,99069.0,99068.0,0.28258339]
[1737976839311,0.3608,99081.0,99076.0,0.201974]
[1737976839510,0.00988314,99094.0,99080.0,0.08043994]
[1737976839812,0.20210517,99087.0,99086.0,0.08043994]
[1737976841819,0.20210517,99087.0,99053.0,0.050505]
[1737976841820,0.20199,99069.0,99063.0,0.3608]
[1737976842514,0.20199,99069.0,99068.0,0.08059139]
[1737976842913,0.20199,99069.0,99068.0,0.00015145]
[1737976843413,0.20299,99069.0,99068.0,0.00015145]
[1737976843614,0.20299,99069.0,99068.0,0.08059139]
[1737976845814,0.56279,99069.0,99068.0,0.08059139]
[1737976846014,0.56479,99069.0,99068.0,0.08059139]
[1737976846811,0.20399,99069.0,99068.0,0.08059139]
[1737976847315,0.21395836,99069.0,99068.0,0.08059139]
[1737976848717,0.20399,99069.0,99068.0,0.08059139]
[1737976849112,0.20299,99069.0,99068.0,0.08059139]
[1737976849313,0.20299,99069.0,99068.0,0.00015145]
[1737976850307,0.001,99069.0,99045.0,0.17920357]
[1737976850517,0.20203,99049.0,99048.0,0.08043994]
[1737976851730,0.00015145,99058.0,99051.0,0.202026]
[1737976851914,0.00015145,99058.0,99056.0,0.08043994]
[1737976852315,0.20216345,99058.0,99056.0,0.08043994]
[1737976852619,0.00015145,99058.0,99057.0,0.28245394]
[1737976853924,0.00151488,99069.0,99057.0,0.08043994]
[1737976854116,0.00151488,99069.0,99068.0,0.44123994]
[1737976854316,0.20350488,99069.0,99068.0,0.44123994]
[1737976854521,0.00151488,99069.0,99062.0,0.3608]
[1737976854724,0.202002,99063.0,99062.0,0.3608]
[1737976856320,0.202002,99063.0,99062.0,0.44123994]
[1737976856623,0.00958198,99069.0,99062.0,0.44123994]
[1737976856815,0.002,99063.0,99062.0,0.3608]
[1737976857213,0.002,99063.0,99062.0,0.44123994]
[1737976857514,0.1152,99091.0,99062.0,0.44123994]
[1737976857515,0.30074576,99142.0,99103.0,0.20192]
[1737976857725,0.09890376,99142.0,99132.0,0.1869266]
[1737976857925,0.09890376,99142.0,99135.0,0.201854]
[1737976858218,0.09890376,99142.0,99137.0,0.3608]
[1737976858612,0.00151379,99155.0,99137.0,0.3608]
[1737976858813,0.00151379,99155.0,99152.0,0.20182]
[1737976859021,0.00151379,99155.0,99147.0,0.7216]
[1737976859321,0.00151379,99155.0,99153.0,0.201818]
[1737976859519,0.201819,99153.0,99147.0,0.3608]
[1737976859920,0.201827,99149.0,99147.0,0.3608]
[1737976860317,0.201827,99149.0,99147.0,0.3618]
[1737976860617,0.00151379,99155.0,99147.0,0.3618]
[1737976860820,0.201828,99149.0,99147.0,0.3618]
[1737976861014,0.562628,99149.0,99147.0,0.001]
[1737976861411,0.201863,99131.0,99130.0,0.00015136]
[1737976862118,0.201889,99119.0,99112.0,0.3608]
[1737976862315,0.3608,99120.0,99115.0,0.23992905]
[1737976862522,0.201866,99130.0,99115.0,0.23992905]
[1737976862721,0.3608,99134.0,99115.0,0.23992905]
[1737976862919,0.201871,99128.0,99115.0,0.23992905]
[1737976863217,0.36095081,99134.0,99115.0,0.24008033]
[1737976863415,0.201869,99129.0,99115.0,0.44197533]
[1737976863613,0.201869,99129.0,99117.0,0.201891]
[1737976863815,0.36095081,99134.0,99115.0,0.24008033]
[1737976864024,0.32873521,99125.0,99115.0,0.24008033]
[1737976864227,0.201894,99116.0,99115.0,0.24008033]
[1737976864616,0.439594,99116.0,99115.0,0.24008033]
[1737976864823,0.5377,99116.0,99106.0,0.29991131]
[1737976865031,0.562712,99107.0,99106.0,0.29991131]
[1737976865931,0.201937,99095.0,99093.0,0.17909093]
[1737976867025,0.00015136,99104.0,99093.0,0.17909093]
[1737976867325,0.00015136,99104.0,99095.0,0.3608]
[1737976867528,0.00015136,99104.0,99103.0,0.3608]
[1737976867723,0.201896,99115.0,99103.0,0.3608]
[1737976868430,0.201868,99129.0,99118.0,0.201889]
[1737976868630,0.3608,99132.0,99111.0,0.3608]
[1737976868934,0.201871,99128.0,99120.0,0.3608]
[1737976869330,0.201893,99117.0,99112.0,0.00015136]
[1737976869717,0.201896,99115.0,99112.0,0.00015136]
[1737976869923,0.201899,99114.0,99112.0,0.00015136]
[1737976870128,0.201885,99121.0,99112.0,0.00015136]
[1737976870326,0.32873521,99125.0,99112.0,0.00015136]
[1737976870526,0.201871,99128.0,99119.0,0.3608]
[1737976871323,0.3608,99132.0,99119.0,0.3608]
[1737976871628,0.3608,99132.0,99120.0,0.201885]
[1737976872124,0.3608,99132.0,99119.0,0.3608]
[1737976872328,0.32873521,99129.0,99112.0,0.00015136]
[1737976872523,0.201899,99114.0,99112.0,0.00015136]
[1737976872927,0.1193,99113.0,99112.0,0.00015136]
[1737976874826,0.2019,99113.0,99112.0,0.00015136]
[1737976875024,0.3241,99113.0,99112.0,0.00015136]
[1737976875224,0.201951,99088.0,99082.0,0.17909093]
[1737976875428,0.05048,99103.0,99085.0,0.3608]
[1737976875429,0.3608,99100.0,99085.0,0.3608]
[1737976875737,0.3608,99110.0,99093.0,0.3608]
[1737976875927,0.32873521,99120.0,99095.0,0.201936]
[1737976876236,0.201917,99105.0,99101.0,0.3608]
[1737976876424,0.00015136,99117.0,99106.0,0.201914]
[1737976876932,0.00015136,99117.0,99103.0,0.1165]
[1737976877533,0.201903,99112.0,99103.0,0.1165]
[1737976877733,0.20304436,99117.0,99105.0,0.201916]
[1737976877929,0.20304436,99117.0,99103.0,0.1165]
[1737976878131,0.00115136,99117.0,99104.0,0.201917]
[1737976878336,0.00015136,99117.0,99116.0,0.562694]
[1737976878639,0.00115136,99117.0,99116.0,0.562694]
[1737976880426,0.20304336,99117.0,99116.0,0.3608]
[1737976880833,0.20204336,99117.0,99116.0,0.3618]
[1737976881428,0.00015136,99117.0,99116.0,0.3618]
[1737976881639,0.00015136,99117.0,99116.0,0.563694]
[1737976882846,0.20204336,99117.0,99116.0,0.3618]
[1737976884237,0.20204336,99117.0,99116.0,0.001]
[1737976884742,0.00015136,99117.0,99102.0,0.3608]
[1737976884936,0.20192,99103.0,99102.0,0.3608]
[1737976886237,0.201908,99109.0,99102.0,0.3618]
[1737976886439,0.20191,99108.0,99102.0,0.563722]
[1737976887143,0.201914,99106.0,99102.0,0.3618]
[1737976887344,0.201914,99106.0,99102.0,0.3628]
[1737976887538,0.3608,99112.0,99102.0,0.3628]
[1737976887738,0.201917,99105.0,99102.0,0.3628]
[1737976887939,0.3608,99112.0,99102.0,0.3618]
[1737976888138,0.20192,99103.0,99102.0,0.3628]
[1737976889135,0.201908,99109.0,99102.0,0.3628]
[1737976889337,0.3608,99112.0,99102.0,0.3618]
[1737976889537,0.3608,99112.0,99102.0,0.3608]
[1737976889742,0.20192,99103.0,99102.0,0.3618]
[1737976889948,0.20192,99103.0,99102.0,0.002]
[1737976890540,0.201925,99101.0,99092.0,0.20345568]
[1737976890741,0.201914,99106.0,99092.0,0.00151368]
[1737976890943,0.20193,99098.0,99092.0,0.00151368]
[1737976892149,0.20193,99098.0,99088.0,0.38104093]
[1737976892150,0.20193,99098.0,99088.0,0.17909093]
[1737976892346,0.201949,99089.0,99088.0,0.17909093]
[1737976892552,0.18676353,99098.0,99087.0,0.17909093]
[1737976892745,0.201951,99088.0,99087.0,0.17909093]
[1737976893448,0.18676353,99097.0,99087.0,0.17909093]
[1737976893449,0.201933,99097.0,99089.0,0.201948]
[1737976893655,0.00015136,99097.0,99093.0,0.3608]
[1737976893843,0.00821877,99116.0,99093.0,0.3608]
[1737976894051,0.00821877,99116.0,99108.0,0.20191]
[1737976894647,0.15074526,99122.0,99108.0,0.20191]
[1737976895047,0.00015136,99118.0,99108.0,0.20191]
[1737976895246,0.00015136,99118.0,99106.0,0.7129]
[1737976895454,0.00015136,99118.0,99117.0,0.562692]
[1737976895856,0.00015136,99118.0,99117.0,0.3608]
[1737976898964,0.00015136,99118.0,99117.0,0.562692]
[1737976900764,0.20204136,99118.0,99117.0,0.562692]
[1737976901167,0.201898,99114.0,99113.0,0.17909093]
[1737976902561,0.3608,99116.0,99097.0,0.66131131]
[1737976902757,0.201926,99100.0,99097.0,0.66131131]
[1737976903167,0.1239,99113.0,99097.0,0.66131131]
[1737976903363,0.201909,99109.0,99098.0,0.20193]
[1737976903568,0.201909,99109.0,99099.0,0.20207836]
[1737976903872,0.201923,99102.0,99099.0,0.00015136]
[1737976904169,0.201926,99100.0,99099.0,0.00015136]
[1737976904976,0.23219845,99100.0,99099.0,0.00015136]
[1737976905476,0.03027245,99100.0,99099.0,0.00015136]
[1737976905776,0.03027245,99100.0,99099.0,0.20207936]
[1737976907171,0.03027245,99100.0,99099.0,0.00015136]
[1737976907478,0.03027245,99100.0,99099.0,0.00215136]
[1737976908176,0.23219845,99100.0,99099.0,0.00215136]
[1737976908374,0.03027245,99100.0,99099.0,0.00215136]
[1737976908677,0.23219845,99100.0,99099.0,0.00215136]
[1737976909077,0.03027245,99100.0,99099.0,0.00015136]
[1737976909982,0.23219845,99100.0,99099.0,0.00015136]
[1737976910276,0.2624709,99100.0,99099.0,0.00215136]
[1737976912681,0.0605449,99100.0,99099.0,0.00215136]
[1737976913382,0.0605449,99100.0,99082.0,0.128]
[1737976913383,0.7821449,99100.0,99042.0,0.41987584]
[1737976913574,0.3608,99080.0,99076.0,0.29991131]
[1737976913878,0.201972,99078.0,99076.0,0.29991131]
[1737976914783,0.3608,99085.0,99076.0,0.29991131]
[1737976915381,0.20210536,99087.0,99083.0,0.3608]
[1737976915971,0.00015136,99087.0,99083.0,0.3608]
[1737976916175,0.201958,99085.0,99083.0,0.3608]
[1737976916776,0.00015136,99087.0,99076.0,0.29991131]
[1737976916980,0.201973,99077.0,99076.0,0.29991131]
[1737976917578,0.201988,99070.0,99068.0,0.00803105]
[1737976917777,0.201988,99070.0,99067.0,0.00015136]
[1737976918382,0.001,99077.0,99067.0,0.00662497]
[1737976918588,0.20199,99069.0,99067.0,0.00662497]
[1737976920083,0.201977,99076.0,99067.0,0.00662497]
[1737976920286,0.201977,99076.0,99074.0,0.3608]
[1737976920681,0.201962,99083.0,99074.0,0.3608]
[1737976921083,0.00015136,99087.0,99082.0,0.3608]
[1737976921692,0.201961,99083.0,99082.0,0.3608]
[1737976922188,0.00015136,99087.0,99082.0,0.3608]
[1737976922886,0.00015136,99087.0,99083.0,0.1255]
[1737976923185,0.201956,99086.0,99083.0,0.1255]
[1737976923591,0.201958,99085.0,99083.0,0.1255]
[1737976923979,0.00015136,99087.0,99083.0,0.1255]
[1737976924396,0.201959,99084.0,99082.0,0.3679196]
[1737976924580,0.3608,99083.0,99057.0,0.00151422]
[1737976924892,0.562792,99068.0,99057.0,0.00151422]
[1737976925085,0.202012,99058.0,99057.0,0.00151422]
[1737976925384,0.18676353,99067.0,99057.0,0.00151422]
[1737976925590,0.20201,99059.0,99057.0,0.00151422]
[1737976926185,0.19388098,99067.0,99057.0,0.00151422]
[1737976926186,0.202012,99058.0,99057.0,0.00151422]
[1737976926893,0.202012,99058.0,99057.0,0.00251422]
[1737976927291,0.19388098,99067.0,99057.0,0.00351422]
[1737976927882,0.00715259,99074.0,99064.0,0.3608]
[1737976928089,0.18676353,99074.0,99064.0,0.3608]
[1737976928386,0.201998,99065.0,99064.0,0.3608]
[1737976928590,0.201998,99065.0,99057.0,0.00451422]
[1737976928781,0.3608,99070.0,99057.0,0.00351422]
[1737976928983,0.202008,99061.0,99057.0,0.00551422]
[1737976929184,0.3608,99070.0,99057.0,0.00551422]
[1737976929389,0.201981,99073.0,99064.0,0.3608]
[1737976929585,0.201998,99065.0,99064.0,0.3608]
[1737976930086,0.20930819,99078.0,99069.0,0.201988]
[1737976930282,0.09055363,99080.0,99064.0,0.3608]
[1737976930596,0.201988,99070.0,99065.0,0.4878]
[1737976931088,0.27731716,99080.0,99065.0,0.4878]
[1737976931294,0.201984,99072.0,99065.0,0.4878]
[1737976931483,0.27731716,99080.0,99065.0,0.4878]
[1737976931884,0.201992,99068.0,99065.0,0.4878]
[1737976932086,0.201996,99066.0,99060.0,0.00733739]
[1737976932389,0.201998,99065.0,99064.0,0.001]
[1737976933000,0.201998,99065.0,99057.0,0.00151422]
[1737976933001,0.3608,99071.0,99057.0,0.00151422]
[1737976933194,0.202012,99058.0,99057.0,0.00151422]
[1737976934997,0.202012,99058.0,99057.0,0.00351422]
[1737976936102,0.202012,99058.0,99057.0,0.00551422]
[1737976937095,0.20914209,99058.0,99057.0,0.00551422]
[1737976937697,0.3608,99071.0,99057.0,0.00551422]
[1737976938096,0.202012,99058.0,99057.0,0.00551422]
[1737976939089,0.202012,99058.0,99057.0,0.00351422]
[1737976940488,0.202012,99058.0,99057.0,0.00551422]
[1737976941297,0.2459,99070.0,99057.0,0.00551422]
[1737976941501,0.202003,99063.0,99057.0,0.00551422]
[1737976941803,0.202005,99062.0,99057.0,0.00551422]
[1737976942004,0.25323818,99070.0,99057.0,0.00551422]
[1737976942195,0.00733818,99070.0,99058.0,0.37630264]